[Event "FIDE WYCC Girls U14 2023"]
[Site "Montesilvano"]
[Date "2023.11.13"]
[Round "1.30"]
[White "Stankovic, Andrea"]
[Black "Glanc, Lea"]
[Result "1-0"]
[ECO "A49"]
[WhiteElo "1768"]
[BlackElo "1294"]
[Annotator "NA"]
[PlyCount "81"]
[EventDate "2023.11.13"]
[EventType "swiss"]
[EventCountry "ITA"]
[SourceTitle "playchess.com"]
[Source "ChessBase"]
[SourceQuality "1"]
[TimeControl "40/5400+30:1800+30"]

1. d4 {[%emt 0:00:02]} Nf6 {[%emt 0:00:08]} 2. Nf3 {[%emt 0:00:08]} g6 {[%emt 0:00:12]} 3. g3 {[%emt 0:00:08]} Bg7 {[%emt 0:00:08]} 4. c4 {[%emt 0:00:08]} d6 {[%emt 0:01:16]} 5. Bg2 {[%emt 0:00:16]} O-O {[%emt 0:00:13]} 6. O-O {[%emt 0:00:27]} c5 {[%emt 0:01:06]} 7. d5 {[%emt 0:01:07]} Na6 {[%emt 0:01:45]} 8. Nc3 {[%emt 0:00:46]} Nc7 {[%emt 0:01:23]} 9. e4 {[%emt 0:01:40]} a6 {[%emt 0:06:08]} 10. a4 {[%emt 0:00:53]} Rb8 {[%emt 0:01:52]} 11. a5 {[%emt 0:01:20]} b5 {[%emt 0:01:50]} 12. axb6 {[%emt 0:00:44]} Rxb6 {[%emt 0:00:36]} 13. Qc2 {[%emt 0:02:25]} Bg4 {[%emt 0:08:14]} 14. Be3 {[%emt 0:01:48]} Qc8 {[%emt 0:23:07]} 15. Ne1 {[%emt 0:07:41]} Bh3 {[%emt 0:08:00]} 16. Nd3 {[%emt 0:04:30]} Bxg2 {[%emt 0:06:47]} 17. Kxg2 {[%emt 0:00:10]} Ng4 {[%emt 0:03:27]} 18. Bf4 {[%emt 0:08:26]} e5 {[%emt 0:09:45]} 19. dxe6 {[%emt 0:02:01]} Qxe6 {[%emt 0:02:25]} 20. f3 {[%emt 0:17:35]} Ne5 {[%emt 0:08:44]} 21. Na4 {[%emt 0:04:58]} Rbb8 {[%emt 0:02:16]} 22. Bxe5 {[%emt 0:01:28]} Bxe5 {[%emt 0:02:28]} 23. f4 {[%emt 0:00:23]} Bd4 {[%emt 0:01:12]} 24. Rae1 {[%emt 0:00:42]} a5 {[%emt 0:04:46]} 25. f5 {[%emt 0:08:00]} Qd7 {[%emt 0:01:49]} 26. Nc3 {[%emt 0:02:18]} Rfe8 {[%emt 0:02:21]} 27. Qd2 {[%emt 0:04:05]} Qe7 {[%emt 0:01:06]} 28. h4 {[%emt 0:08:53]} Be5 {[%emt 0:00:38]} 29. h5 {[%emt 0:05:38]} Bf6 {[%emt 0:00:34]} 30. Nd5 {[%emt 0:01:49]} Nxd5 {[%emt 0:00:19]} 31. exd5 {[%emt 0:00:13]} Qb7 {[%emt 0:00:38]} 32. fxg6 {[%emt 0:00:25]} Rxe1 {[%emt 0:00:25]} 33. Qxe1 {[%emt 0:01:21]} Qe7 {[%emt 0:00:31]} 34. Qxe7 {[%emt 0:00:14]} Bxe7 {[%emt 0:00:06]} 35. Rxf7 {[%emt 0:00:04]} Re8 {[%emt 0:00:30]} 36. Rxh7 {[%emt 0:00:32]} Bf6 {[%emt 0:00:15]} 37. Rf7 {[%emt 0:00:39]} Bd4 {[%emt 0:00:58]} 38. h6 {[%emt 0:01:56]} Re2+ {[%emt 0:00:29]} 39. Kh3 {[%emt 0:01:07]} Bxb2 {[%emt 0:00:51]} 40. Rb7 {[%emt 0:00:00]} Be5 {[%emt 0:00:00]} 41. Rb8# 1-0

[Event "FIDE WYCC Girls U14 2023"]
[Site "Montesilvano"]
[Date "2023.11.13"]
[Round "1.31"]
[White "Marin Garrido, Carolina"]
[Black "Romany, Joy"]
[Result "0-1"]
[ECO "B40"]
[WhiteElo "1282"]
[BlackElo "1764"]
[Annotator "NA"]
[PlyCount "62"]
[EventDate "2023.11.13"]
[EventType "swiss"]
[EventCountry "ITA"]
[SourceTitle "playchess.com"]
[Source "ChessBase"]
[SourceQuality "1"]
[TimeControl "40/5400+30:1800+30"]

1. e4 {[%emt 0:00:07]} c5 {[%emt 0:00:12]} 2. Nf3 {[%emt 0:00:27]} e6 {[%emt 0:00:22]} 3. d3 {[%emt 0:00:22]} Nc6 {[%emt 0:01:06]} 4. Nbd2 {[%emt 0:01:15]} d6 {[%emt 0:02:10]} 5. g3 {[%emt 0:01:07]} Nf6 {[%emt 0:01:01]} 6. Bg2 {[%emt 0:01:20]} Be7 {[%emt 0:03:35]} 7. O-O {[%emt 0:02:23]} O-O {[%emt 0:00:14]} 8. Re1 {[%emt 0:02:19]} Qc7 {[%emt 0:00:34]} 9. c3 {[%emt 0:03:53]} Bd7 {[%emt 0:01:25]} 10. Nf1 {[%emt 0:08:23]} Rac8 {[%emt 0:07:47]} 11. Bf4 {[%emt 0:05:07]} e5 {[%emt 0:08:45]} 12. Bg5 {[%emt 0:01:03]} h6 {[%emt 0:03:52]} 13. Be3 {[%emt 0:02:50]} d5 {[%emt 0:13:49]} 14. Qc2 {[%emt 0:05:05]} Be6 {[%emt 0:07:53]} 15. Bd2 {[%emt 0:03:28]} d4 {[%emt 0:02:49]} 16. c4 {[%emt 0:00:29]} Ne8 {[%emt 0:07:25]} 17. h3 {[%emt 0:08:06]} Nd6 {[%emt 0:07:03]} 18. N3h2 {[%emt 0:09:23]} Qd7 {[%emt 0:07:13]} 19. g4 {[%emt 0:05:44]} Nb4 {[%emt 0:03:01]} 20. Bxb4 {[%emt 0:03:01]} cxb4 {[%emt 0:00:09]} 21. f4 {[%emt 0:01:03]} exf4 {[%emt 0:05:31]} 22. Nf3 {[%emt 0:01:38]} Ne8 {[%emt 0:02:28]} 23. Qd2 {[%emt 0:01:25]} g5 {[%emt 0:01:26]} 24. N1h2 {[%emt 0:01:54]} Qc7 {[%emt 0:03:23]} 25. Kh1 {[%emt 0:05:07]} Rd8 {[%emt 0:00:46]} 26. e5 {[%emt 0:03:55]} Qb6 {[%emt 0:02:11]} 27. Re4 {[%emt 0:07:48]} Nc7 {[%emt 0:02:32]} 28. Qf2 {[%emt 0:07:08]} Na6 {[%emt 0:01:24]} 29. Rf1 {[%emt 0:06:46]} Nc5 {[%emt 0:01:21]} 30. Rxd4 {[%emt 0:00:59]} Nxd3 {[%emt 0:00:52]} 31. Qg1 {[%emt 0:01:44]} Bc5 {[%emt 0:01:23]} 0-1

[Event "FIDE WYCC Girls U14 2023"]
[Site "Montesilvano"]
[Date "2023.11.13"]
[Round "1.32"]
[White "Gaszka, Zuzanna"]
[Black "Bertuzzi, Karol"]
[Result "1-0"]
[ECO "B27"]
[WhiteElo "1758"]
[BlackElo "1279"]
[Annotator "NA"]
[PlyCount "53"]
[EventDate "2023.11.13"]
[EventType "swiss"]
[EventCountry "ITA"]
[SourceTitle "playchess.com"]
[Source "ChessBase"]
[SourceQuality "1"]
[TimeControl "40/5400+30:1800+30"]

1. e4 {[%emt 0:00:01]} c5 {[%emt 0:00:07]} 2. Nf3 {[%emt 0:00:05]} g6 {[%emt 0:00:13]} 3. d4 {[%emt 0:00:08]} cxd4 {[%emt 0:00:08]} 4. Qxd4 {[%emt 0:00:35]} Nf6 {[%emt 0:00:19]} 5. e5 {[%emt 0:00:15]} Nc6 {[%emt 0:00:18]} 6. Qa4 {[%emt 0:00:18]} Nh5 {[%emt 0:06:11]} 7. Bd2 {[%emt 0:10:44]} Qc7 {[%emt 0:09:14]} 8. Bc3 {[%emt 0:00:59]} Ng7 {[%emt 0:03:29]} 9. Nbd2 {[%emt 0:09:31]} Ne6 {[%emt 0:04:31]} 10. Qe4 {[%emt 0:09:24]} Bg7 {[%emt 0:09:06]} 11. Bc4 {[%emt 0:04:14]} b6 {[%emt 0:09:03]} 12. Bxe6 {[%emt 0:04:30]} dxe6 {[%emt 0:03:03]} 13. O-O {[%emt 0:10:25]} Bb7 {[%emt 0:06:15]} 14. Rfe1 {[%emt 0:03:01]} Rd8 {[%emt 0:06:22]} 15. Qh4 {[%emt 0:03:59]} h6 {[%emt 0:07:10]} 16. Qg3 {[%emt 0:04:20]} a5 {[%emt 0:03:35]} 17. a4 {[%emt 0:01:44]} Nb4 {[%emt 0:05:48]} 18. Bxb4 {[%emt 0:03:35]} axb4 {[%emt 0:00:37]} 19. Qg4 {[%emt 0:13:18]} Bxe5 {[%emt 0:10:20]} 20. Nxe5 {[%emt 0:01:02]} Rxd2 {[%emt 0:00:53]} 21. Qf4 {[%emt 0:00:18]} Rxc2 {[%emt 0:03:05]} 22. Qxf7+ {[%emt 0:00:19]} Kd8 {[%emt 0:00:17]} 23. Qxe6 {[%emt 0:02:38]} Ke8 {[%emt 0:01:46]} 24. Rad1 {[%emt 0:01:14]} Qxe5 {[%emt 0:02:23]} 25. Rxe5 {[%emt 0:00:25]} Rc7 {[%emt 0:00:50]} 26. Qxg6+ {[%emt 0:00:05]} Kf8 {[%emt 0:00:22]} 27. Rd8# {[%emt 0:00:04]} 1-0

[Event "FIDE WYCC Girls U14 2023"]
[Site "Montesilvano"]
[Date "2023.11.13"]
[Round "1.33"]
[White "Boaron, Elena"]
[Black "Natoli, Alessia"]
[Result "0-1"]
[ECO "B12"]
[WhiteElo "1273"]
[BlackElo "1756"]
[Annotator "NA"]
[PlyCount "76"]
[EventDate "2023.11.13"]
[EventType "swiss"]
[EventCountry "ITA"]
[SourceTitle "playchess.com"]
[Source "ChessBase"]
[SourceQuality "1"]
[TimeControl "40/5400+30:1800+30"]

1. e4 {[%emt 0:00:03]} c6 {[%emt 0:00:18]} 2. d4 {[%emt 0:00:14]} d5 {[%emt 0:00:22]} 3. e5 {[%emt 0:00:50]} Bf5 {[%emt 0:00:48]} 4. c3 {[%emt 0:01:11]} e6 {[%emt 0:01:14]} 5. Be3 {[%emt 0:02:49]} Qb6 {[%emt 0:04:03]} 6. Qb3 {[%emt 0:07:37]} Nd7 {[%emt 0:03:46]} 7. Nd2 {[%emt 0:02:38]} Be7 {[%emt 0:02:35]} 8. Ne2 {[%emt 0:03:05]} h5 {[%emt 0:05:15]} 9. Ng3 {[%emt 0:13:19]} Bg6 {[%emt 0:03:02]} 10. h4 {[%emt 0:02:35]} Nh6 {[%emt 0:05:11]} 11. Be2 {[%emt 0:13:18]} Nf5 {[%emt 0:05:07]} 12. Nxf5 {[%emt 0:00:48]} Bxf5 {[%emt 0:00:08]} 13. f3 {[%emt 0:04:10]} a5 {[%emt 0:06:42]} 14. a4 {[%emt 0:06:34]} Qxb3 {[%emt 0:08:44]} 15. Nxb3 {[%emt 0:00:09]} f6 {[%emt 0:01:04]} 16. f4 {[%emt 0:01:06]} Kf7 {[%emt 0:07:04]} 17. Bf3 {[%emt 0:06:58]} b5 {[%emt 0:07:27]} 18. axb5 {[%emt 0:06:08]} a4 {[%emt 0:04:00]} 19. bxc6 {[%emt 0:02:57]} axb3 {[%emt 0:01:03]} 20. Rxa8 {[%emt 0:00:17]} Rxa8 {[%emt 0:00:15]} 21. cxd7 {[%emt 0:00:08]} Ra1+ {[%emt 0:01:09]} 22. Bd1 {[%emt 0:00:11]} Bg4 {[%emt 0:01:00]} 23. Kd2 {[%emt 0:00:17]} Rb1 {[%emt 0:01:04]} 24. Re1 {[%emt 0:03:58]} Bxd1 {[%emt 0:01:50]} 25. Rxd1 {[%emt 0:00:11]} Rxb2+ {[%emt 0:00:10]} 26. Kc1 {[%emt 0:02:15]} Rxg2 {[%emt 0:01:43]} 27. Rd2 {[%emt 0:02:43]} Ba3+ {[%emt 0:03:30]} 28. Kb1 {[%emt 0:02:51]} Rxd2 {[%emt 0:00:26]} 29. Bxd2 {[%emt 0:00:05]} Ke7 {[%emt 0:00:35]} 30. Bc1 {[%emt 0:00:10]} Bxc1 {[%emt 0:00:42]} 31. Kxc1 {[%emt 0:00:04]} Kxd7 {[%emt 0:00:32]} 32. Kb2 {[%emt 0:00:07]} g5 {[%emt 0:00:40]} 33. fxg5 {[%emt 0:01:54]} fxg5 {[%emt 0:00:08]} 34. hxg5 {[%emt 0:00:44]} h4 {[%emt 0:00:16]} 35. g6 {[%emt 0:00:17]} Ke7 {[%emt 0:00:05]} 36. Kxb3 {[%emt 0:00:21]} h3 {[%emt 0:00:08]} 37. c4 {[%emt 0:09:47]} dxc4+ {[%emt 0:00:17]} 38. Kxc4 {[%emt 0:00:07]} h2 0-1

[Event "FIDE WYCC Girls U14 2023"]
[Site "Montesilvano"]
[Date "2023.11.13"]
[Round "1.35"]
[White "Kostadinova, Fabiyana"]
[Black "Zadrapova, Amalie"]
[Result "0-1"]
[ECO "D70"]
[WhiteElo "1259"]
[BlackElo "1753"]
[Annotator "NA"]
[PlyCount "64"]
[EventDate "2023.11.13"]
[EventType "swiss"]
[EventCountry "ITA"]
[SourceTitle "playchess.com"]
[Source "ChessBase"]
[SourceQuality "1"]
[TimeControl "40/5400+30:1800+30"]

1. d4 {[%emt 0:00:03]} Nf6 {[%emt 0:00:08]} 2. c4 {[%emt 0:00:08]} g6 {[%emt 0:00:06]} 3. Nf3 {[%emt 0:00:16]} Bg7 {[%emt 0:00:09]} 4. e3 {[%emt 0:00:21]} O-O {[%emt 0:00:29]} 5. Bd3 {[%emt 0:00:26]} d6 {[%emt 0:01:26]} 6. Nbd2 {[%emt 0:02:06]} Nbd7 {[%emt 0:01:13]} 7. O-O {[%emt 0:01:52]} e5 {[%emt 0:02:13]} 8. dxe5 {[%emt 0:01:59]} dxe5 {[%emt 0:00:53]} 9. Ne4 {[%emt 0:04:37]} Nxe4 {[%emt 0:04:11]} 10. Bxe4 {[%emt 0:00:06]} Qe7 {[%emt 0:02:17]} 11. Bc2 {[%emt 0:02:39]} f5 {[%emt 0:10:14]} 12. e4 {[%emt 0:06:31]} f4 {[%emt 0:04:36]} 13. Qe2 {[%emt 0:03:16]} g5 {[%emt 0:10:53]} 14. Nd2 {[%emt 0:03:10]} Nf6 {[%emt 0:03:31]} 15. f3 {[%emt 0:04:43]} h5 {[%emt 0:01:56]} 16. h3 {[%emt 0:01:00]} Bh6 {[%emt 0:10:25]} 17. Qf2 {[%emt 0:07:26]} g4 {[%emt 0:05:03]} 18. fxg4 {[%emt 0:02:34]} hxg4 {[%emt 0:01:15]} 19. Kh1 {[%emt 0:00:43]} Nh5 {[%emt 0:04:15]} 20. Rg1 {[%emt 0:01:48]} Ng3+ {[%emt 0:00:31]} 21. Kh2 {[%emt 0:00:06]} Qh4 {[%emt 0:05:01]} 22. Bd1 {[%emt 0:04:04]} Rd8 {[%emt 0:07:57]} 23. Re1 {[%emt 0:12:40]} Be6 {[%emt 0:05:07]} 24. b3 {[%emt 0:03:55]} Rxd2 {[%emt 0:03:55]} 25. Bxd2 {[%emt 0:00:27]} gxh3 {[%emt 0:01:12]} 26. Bf3 {[%emt 0:00:27]} hxg2+ {[%emt 0:04:31]} 27. Kxg2 {[%emt 0:00:07]} Bh3+ {[%emt 0:01:23]} 28. Kg1 {[%emt 0:00:17]} Kf7 {[%emt 0:01:24]} 29. Qc5 {[%emt 0:09:15]} Rg8 {[%emt 0:04:10]} 30. Qd5+ {[%emt 0:02:29]} Be6 {[%emt 0:00:44]} 31. Qxe5 {[%emt 0:01:43]} Nxe4+ {[%emt 0:00:48]} 32. Bg2 {[%emt 0:00:20]} Qf2+ 0-1

[Event "FIDE WYCC Girls U14 2023"]
[Site "Montesilvano"]
[Date "2023.11.14"]
[Round "2.1"]
[White "Mou, Iris"]
[Black "Andries, Alexia"]
[Result "1-0"]
[ECO "B31"]
[WhiteElo "2086"]
[BlackElo "1750"]
[Annotator "NA"]
[PlyCount "49"]
[EventDate "2023.11.13"]
[EventType "swiss"]
[EventCountry "ITA"]
[SourceTitle "playchess.com"]
[Source "ChessBase"]
[SourceQuality "1"]
[TimeControl "40/5400+30:1800+30"]

1. e4 {[%emt 0:00:02]} c5 {[%emt 0:00:05]} 2. Nf3 {[%emt 0:00:07]} Nc6 {[%emt 0:00:05]} 3. Bb5 {[%emt 0:00:17]} g6 {[%emt 0:00:11]} 4. Bxc6 {[%emt 0:00:30]} bxc6 {[%emt 0:00:06]} 5. O-O {[%emt 0:02:20]} Bg7 {[%emt 0:00:06]} 6. e5 {[%emt 0:04:03]} Nh6 {[%emt 0:14:35]} 7. d3 {[%emt 0:05:47]} O-O {[%emt 0:00:32]} 8. Re1 {[%emt 0:07:34]} d5 {[%emt 0:01:56]} 9. exd6 {[%emt 0:05:43]} exd6 {[%emt 0:00:11]} 10. Bg5 {[%emt 0:03:04]} f6 {[%emt 0:00:34]} 11. Bd2 {[%emt 0:03:27]} d5 {[%emt 0:03:30]} 12. Nc3 {[%emt 0:04:13]} Nf7 {[%emt 0:03:33]} 13. Na4 {[%emt 0:07:36]} Qd6 {[%emt 0:00:17]} 14. h3 {[%emt 0:01:11]} Bd7 {[%emt 0:07:03]} 15. c3 {[%emt 0:04:04]} g5 {[%emt 0:13:27]} 16. Be3 {[%emt 0:06:06]} d4 {[%emt 0:02:18]} 17. cxd4 {[%emt 0:00:22]} cxd4 {[%emt 0:00:05]} 18. Bxd4 {[%emt 0:00:21]} Rfe8 {[%emt 0:01:09]} 19. Bc5 {[%emt 0:09:38]} Rxe1+ {[%emt 0:01:34]} 20. Qxe1 {[%emt 0:05:30]} Qxd3 {[%emt 0:03:24]} 21. Rd1 {[%emt 0:00:46]} Qf5 {[%emt 0:00:39]} 22. Qe7 {[%emt 0:01:33]} Rd8 {[%emt 0:00:33]} 23. g4 {[%emt 0:05:05]} Qxf3 {[%emt 0:01:23]} 24. Rxd7 {[%emt 0:00:14]} Rf8 {[%emt 0:00:34]} 25. Qe6 {[%emt 0:00:54]} 1-0

[Event "FIDE WYCC Girls U14 2023"]
[Site "Montesilvano"]
[Date "2023.11.14"]
[Round "2.2"]
[White "Mgeladze, Kesaria"]
[Black "Caku, Kler"]
[Result "1-0"]
[ECO "C45"]
[WhiteElo "2065"]
[BlackElo "1740"]
[Annotator "NA"]
[PlyCount "49"]
[EventDate "2023.11.13"]
[EventType "swiss"]
[EventCountry "ITA"]
[SourceTitle "playchess.com"]
[Source "ChessBase"]
[SourceQuality "1"]
[TimeControl "40/5400+30:1800+30"]

1. e4 {[%emt 0:02:28]} e5 {[%emt 0:00:26]} 2. Nf3 {[%emt 0:00:10]} Nc6 {[%emt 0:00:08]} 3. d4 {[%emt 0:00:06]} exd4 {[%emt 0:00:04]} 4. Nxd4 {[%emt 0:00:04]} Nf6 {[%emt 0:00:12]} 5. Nxc6 {[%emt 0:00:05]} bxc6 {[%emt 0:00:06]} 6. e5 {[%emt 0:00:04]} Qe7 {[%emt 0:00:09]} 7. Qe2 {[%emt 0:00:06]} Nd5 {[%emt 0:00:08]} 8. g3 {[%emt 0:00:05]} g6 {[%emt 0:00:05]} 9. c4 {[%emt 0:00:07]} Ba6 {[%emt 0:00:04]} 10. b3 {[%emt 0:00:07]} Bg7 {[%emt 0:00:09]} 11. Bb2 {[%emt 0:00:06]} d6 {[%emt 0:00:39]} 12. Bg2 {[%emt 0:00:35]} O-O-O {[%emt 0:04:14]} 13. O-O {[%emt 0:09:33]} Bxe5 {[%emt 0:13:23]} 14. Qd2 {[%emt 0:10:46]} Bxb2 {[%emt 0:16:49]} 15. Qxb2 {[%emt 0:00:11]} Nb6 {[%emt 0:23:42]} 16. Qa3 {[%emt 0:04:47]} Bb7 {[%emt 0:05:17]} 17. Qxa7 {[%emt 0:00:08]} Qe5 {[%emt 0:01:15]} 18. Nd2 {[%emt 0:01:43]} Nd7 {[%emt 0:14:03]} 19. b4 {[%emt 0:06:40]} d5 {[%emt 0:02:20]} 20. Rac1 {[%emt 0:09:16]} dxc4 {[%emt 0:04:57]} 21. Nxc4 {[%emt 0:00:27]} Qb5 {[%emt 0:00:57]} 22. a4 {[%emt 0:10:37]} Qa6 {[%emt 0:00:48]} 23. Qxa6 {[%emt 0:00:25]} Bxa6 {[%emt 0:00:03]} 24. b5 {[%emt 0:00:32]} cxb5 {[%emt 0:02:35]} 25. axb5 {[%emt 0:00:04]} 1-0

[Event "FIDE WYCC Girls U14 2023"]
[Site "Montesilvano"]
[Date "2023.11.14"]
[Round "2.3"]
[White "Zadrapova, Amalie"]
[Black "Lyutsinger, Iren"]
[Result "0-1"]
[ECO "B94"]
[WhiteElo "1753"]
[BlackElo "2020"]
[Annotator "NA"]
[PlyCount "76"]
[EventDate "2023.11.13"]
[EventType "swiss"]
[EventCountry "ITA"]
[SourceTitle "playchess.com"]
[Source "ChessBase"]
[SourceQuality "1"]
[TimeControl "40/5400+30:1800+30"]

1. e4 {[%emt 0:00:02]} c5 {[%emt 0:00:07]} 2. Nf3 {[%emt 0:00:07]} d6 {[%emt 0:00:06]} 3. d4 {[%emt 0:00:07]} cxd4 {[%emt 0:00:05]} 4. Nxd4 {[%emt 0:00:08]} Nf6 {[%emt 0:00:07]} 5. Nc3 {[%emt 0:00:09]} a6 {[%emt 0:00:04]} 6. Bg5 {[%emt 0:00:29]} Nbd7 {[%emt 0:00:09]} 7. f4 {[%emt 0:00:52]} Qa5 {[%emt 0:00:08]} 8. Nb3 {[%emt 0:07:47]} Qc7 {[%emt 0:00:11]} 9. Qd2 {[%emt 0:04:43]} e6 {[%emt 0:01:36]} 10. Be2 {[%emt 0:07:52]} b5 {[%emt 0:01:48]} 11. a3 {[%emt 0:01:17]} Bb7 {[%emt 0:00:46]} 12. Bf3 {[%emt 0:00:39]} Be7 {[%emt 0:00:23]} 13. O-O {[%emt 0:01:49]} h6 {[%emt 0:08:57]} 14. Bh4 {[%emt 0:01:18]} O-O {[%emt 0:01:03]} 15. Qe1 {[%emt 0:07:29]} Nb6 {[%emt 0:12:22]} 16. Na5 {[%emt 0:04:09]} e5 {[%emt 0:13:30]} 17. Rd1 {[%emt 0:07:39]} Nc4 {[%emt 0:15:08]} 18. Nxc4 {[%emt 0:03:17]} Qxc4 {[%emt 0:01:24]} 19. f5 {[%emt 0:10:41]} Rac8 {[%emt 0:04:36]} 20. Kh1 {[%emt 0:01:30]} Qc5 {[%emt 0:01:49]} 21. Rf2 {[%emt 0:09:46]} g5 {[%emt 0:19:23]} 22. fxg6 {[%emt 0:02:37]} fxg6 {[%emt 0:00:06]} 23. Bxf6 {[%emt 0:02:34]} Bxf6 {[%emt 0:02:21]} 24. Bg4 {[%emt 0:06:24]} Rce8 {[%emt 0:01:02]} 25. Rfd2 {[%emt 0:00:53]} Rd8 {[%emt 0:02:21]} 26. Be6+ {[%emt 0:02:14]} Kg7 {[%emt 0:00:25]} 27. h4 {[%emt 0:02:57]} Be7 {[%emt 0:05:06]} 28. g3 {[%emt 0:09:01]} Rf6 {[%emt 0:01:30]} 29. Bh3 {[%emt 0:02:19]} Rdf8 {[%emt 0:01:42]} 30. h5 {[%emt 0:00:30]} Bc8 {[%emt 0:01:35]} 31. Bxc8 {[%emt 0:01:39]} Qxc8 {[%emt 0:00:08]} 32. Kg2 {[%emt 0:01:01]} Rf3 {[%emt 0:01:10]} 33. Nd5 {[%emt 0:01:01]} Bh4 {[%emt 0:01:12]} 34. gxh4 {[%emt 0:01:03]} Qg4+ {[%emt 0:03:47]} 35. Kh1 {[%emt 0:00:10]} Rh3+ {[%emt 0:00:51]} 36. Rh2 {[%emt 0:00:20]} Rff3 {[%emt 0:00:53]} 37. Rdd2 {[%emt 0:01:05]} Rfg3 {[%emt 0:00:34]} 38. Rde2 {[%emt 0:01:04]} Qf3+ {[%emt 0:00:21]} 0-1

[Event "FIDE WYCC Girls U14 2023"]
[Site "Montesilvano"]
[Date "2023.11.14"]
[Round "2.4"]
[White "Smietanska, Wiktoria"]
[Black "Trunz, Tamila"]
[Result "0-1"]
[ECO "B40"]
[WhiteElo "2009"]
[BlackElo "1732"]
[Annotator "NA"]
[PlyCount "84"]
[EventDate "2023.11.13"]
[EventType "swiss"]
[EventCountry "ITA"]
[SourceTitle "playchess.com"]
[Source "ChessBase"]
[SourceQuality "1"]
[TimeControl "40/5400+30:1800+30"]

1. e4 {[%emt 0:00:02]} c5 {[%emt 0:00:06]} 2. Nf3 {[%emt 0:00:07]} e6 {[%emt 0:00:06]} 3. d4 {[%emt 0:00:06]} cxd4 {[%emt 0:00:04]} 4. Nxd4 {[%emt 0:00:08]} Nf6 {[%emt 0:00:07]} 5. Nc3 {[%emt 0:00:09]} Nc6 {[%emt 0:00:04]} 6. Nxc6 {[%emt 0:00:14]} bxc6 {[%emt 0:00:04]} 7. e5 {[%emt 0:00:16]} Nd5 {[%emt 0:00:03]} 8. Ne4 {[%emt 0:00:13]} Qc7 {[%emt 0:00:11]} 9. f4 {[%emt 0:00:16]} Rb8 {[%emt 0:00:06]} 10. c4 {[%emt 0:02:22]} Bb4+ {[%emt 0:00:05]} 11. Ke2 {[%emt 0:09:19]} O-O {[%emt 0:03:03]} 12. cxd5 {[%emt 0:14:30]} cxd5 {[%emt 0:00:06]} 13. Nf2 {[%emt 0:03:33]} f6 {[%emt 0:07:18]} 14. exf6 {[%emt 0:06:14]} Rxf6 {[%emt 0:00:43]} 15. Nd3 {[%emt 0:02:09]} Ba6 {[%emt 0:11:06]} 16. Kf3 {[%emt 0:05:26]} Bd6 {[%emt 0:15:55]} 17. g3 {[%emt 0:19:12]} e5 {[%emt 0:03:38]} 18. Kf2 {[%emt 0:17:57]} Kh8 {[%emt 0:24:27]} 19. b3 {[%emt 0:05:57]} Qb6+ {[%emt 0:01:58]} 20. Kg2 {[%emt 0:02:53]} Bb7 {[%emt 0:14:37]} 21. Rg1 {[%emt 0:04:27]} d4+ {[%emt 0:01:54]} 22. Kf2 {[%emt 0:00:50]} Re8 {[%emt 0:01:35]} 23. Bg2 {[%emt 0:01:45]} e4 {[%emt 0:00:26]} 24. Nb2 {[%emt 0:00:17]} e3+ {[%emt 0:01:02]} 25. Ke2 {[%emt 0:00:21]} Ba6+ {[%emt 0:01:00]} 26. Nd3 {[%emt 0:00:48]} Bb4 {[%emt 0:03:46]} 27. Bd5 {[%emt 0:01:35]} Bc3 {[%emt 0:00:39]} 28. Rb1 {[%emt 0:00:17]} Rd6 {[%emt 0:00:21]} 29. Bf3 {[%emt 0:01:03]} Rh6 {[%emt 0:01:52]} 30. h4 {[%emt 0:00:22]} Qg6 {[%emt 0:00:46]} 31. a3 {[%emt 0:02:29]} Bd2 {[%emt 0:00:37]} 32. Qc2 {[%emt 0:00:37]} Rc8 {[%emt 0:00:16]} 33. h5 {[%emt 0:00:33]} Rxh5 {[%emt 0:03:08]} 34. Qxc8+ {[%emt 0:00:28]} Bxc8 {[%emt 0:00:04]} 35. Bxd2 {[%emt 0:00:31]} Rh2+ {[%emt 0:00:20]} 36. Rg2 {[%emt 0:00:17]} Rxg2+ {[%emt 0:00:24]} 37. Bxg2 {[%emt 0:00:06]} Ba6 {[%emt 0:00:52]} 38. f5 {[%emt 0:00:25]} Qxf5 {[%emt 0:00:13]} 39. Rf1 {[%emt 0:00:19]} Qxd3+ {[%emt 0:00:14]} 40. Kf3 {[%emt 0:00:00]} exd2+ {[%emt 0:00:00]} 41. Kg4 {[%emt 0:00:17]} Qg6+ {[%emt 0:01:12]} 42. Kh4 {[%emt 0:00:16]} Bxf1 {[%emt 0:00:16]} 0-1

[Event "FIDE WYCC Girls U14 2023"]
[Site "Montesilvano"]
[Date "2023.11.14"]
[Round "2.5"]
[White "Arzur, Maia"]
[Black "Huang, Jolie"]
[Result "1-0"]
[ECO "B38"]
[WhiteElo "1997"]
[BlackElo "1680"]
[Annotator "NA"]
[PlyCount "93"]
[EventDate "2023.11.13"]
[EventType "swiss"]
[EventCountry "ITA"]
[SourceTitle "playchess.com"]
[Source "ChessBase"]
[SourceQuality "1"]
[TimeControl "40/5400+30:1800+30"]

1. e4 {[%emt 0:00:07]} c5 {[%emt 0:00:11]} 2. Nf3 {[%emt 0:00:18]} Nc6 {[%emt 0:00:16]} 3. d4 {[%emt 0:00:15]} cxd4 {[%emt 0:00:19]} 4. Nxd4 {[%emt 0:00:18]} g6 {[%emt 0:00:28]} 5. c4 {[%emt 0:00:49]} Bg7 {[%emt 0:00:25]} 6. Be3 {[%emt 0:01:09]} Qb6 {[%emt 0:02:06]} 7. Nb5 {[%emt 0:06:06]} Qa5+ {[%emt 0:00:23]} 8. N1c3 {[%emt 0:02:51]} Nf6 {[%emt 0:00:56]} 9. f3 {[%emt 0:02:19]} O-O {[%emt 0:02:39]} 10. Be2 {[%emt 0:04:05]} d6 {[%emt 0:08:01]} 11. O-O {[%emt 0:04:10]} a6 {[%emt 0:04:51]} 12. Nd4 {[%emt 0:04:36]} Nh5 {[%emt 0:06:53]} 13. Nd5 {[%emt 0:06:36]} Qd8 {[%emt 0:07:30]} 14. Qd2 {[%emt 0:04:32]} e6 {[%emt 0:18:46]} 15. Nc3 {[%emt 0:05:44]} Nf4 {[%emt 0:10:00]} 16. Rfd1 {[%emt 0:10:07]} Nxd4 {[%emt 0:08:57]} 17. Bxd4 {[%emt 0:04:38]} Qg5 {[%emt 0:06:26]} 18. Bf1 {[%emt 0:06:23]} Bh6 {[%emt 0:02:23]} 19. Kh1 {[%emt 0:05:38]} Nh5 {[%emt 0:04:04]} 20. Qxg5 {[%emt 0:03:58]} Bxg5 {[%emt 0:00:06]} 21. Bb6 {[%emt 0:00:23]} Bd7 {[%emt 0:02:19]} 22. Rxd6 {[%emt 0:02:03]} Bc6 {[%emt 0:00:19]} 23. Rad1 {[%emt 0:02:37]} Bf6 {[%emt 0:01:02]} 24. R6d2 {[%emt 0:03:29]} Rfc8 {[%emt 0:05:06]} 25. Ne2 {[%emt 0:02:40]} Ng7 {[%emt 0:01:40]} 26. Nd4 {[%emt 0:02:21]} Be8 {[%emt 0:02:17]} 27. b3 {[%emt 0:02:47]} h5 {[%emt 0:00:43]} 28. Nc2 {[%emt 0:01:40]} Kh7 {[%emt 0:01:08]} 29. a4 {[%emt 0:01:01]} Bc6 {[%emt 0:00:34]} 30. g3 {[%emt 0:01:09]} Bg5 {[%emt 0:00:43]} 31. Rd3 {[%emt 0:01:14]} Bf6 {[%emt 0:00:37]} 32. a5 {[%emt 0:01:03]} Be7 {[%emt 0:00:22]} 33. Bg2 {[%emt 0:00:45]} e5 {[%emt 0:01:56]} 34. Ne3 {[%emt 0:04:10]} Ne6 {[%emt 0:00:56]} 35. Nd5 {[%emt 0:00:50]} Bf8 {[%emt 0:01:17]} 36. Bh3 {[%emt 0:00:37]} Kg7 {[%emt 0:01:20]} 37. Bxe6 {[%emt 0:02:38]} fxe6 {[%emt 0:00:07]} 38. Nc7 {[%emt 0:00:12]} Rxc7 {[%emt 0:00:34]} 39. Bxc7 {[%emt 0:00:03]} Kf6 {[%emt 0:00:10]} 40. Bd8+ {[%emt 0:00:00]} Kf7 {[%emt 0:00:00]} 41. Kg2 {[%emt 0:02:34]} Bg7 {[%emt 0:03:20]} 42. Kh3 {[%emt 0:01:46]} Bh6 {[%emt 0:02:36]} 43. g4 {[%emt 0:05:42]} hxg4+ {[%emt 0:02:18]} 44. Kxg4 {[%emt 0:00:13]} Rc8 {[%emt 0:01:18]} 45. h4 {[%emt 0:00:25]} Be8 {[%emt 0:00:42]} 46. Bb6 {[%emt 0:01:10]} Bf8 {[%emt 0:01:30]} 47. Rd7+ {[%emt 0:02:26]} 1-0